[Event "Early-Titled-Tuesday-Blitz-October-17-2023"]
[Site "Chess.com"]
[Date "2023.10.17"]
[Round "3"]
[White "RandomNoob04"]
[Black "verrbaa"]
[Result "1-0"]
[WhiteElo "2624"]
[BlackElo "2451"]
[TimeControl "180+1"]
[EndTime "8:29:24 PDT"]
[Termination "RandomNoob04 won by checkmate"]

1. e4 {[%clk 0:03:00.5]} 1... e5 {[%clk 0:02:59.3]} 2. d4 {[%clk 0:02:59.9]}
2... exd4 {[%clk 0:02:58.1]} 3. Qxd4 {[%clk 0:02:56.7]} 3... Nc6 {[%clk
0:02:58.3]} 4. Qe3 {[%clk 0:02:56.6]} 4... Nf6 {[%clk 0:02:57.6]} 5. e5 {[%clk
0:02:56.4]} 5... Nd5 {[%clk 0:02:20.3]} 6. Qe4 {[%clk 0:02:37.8]} 6... Nb6
{[%clk 0:02:17.8]} 7. Nf3 {[%clk 0:02:36.7]} 7... Be7 {[%clk 0:02:13.3]} 8. Nc3
{[%clk 0:02:35.6]} 8... d5 {[%clk 0:01:43.1]} 9. exd6 {[%clk 0:02:36.5]} 9...
cxd6 {[%clk 0:01:41.3]} 10. Bf4 {[%clk 0:02:17.6]} 10... d5 {[%clk 0:01:34.4]}
11. Qd3 {[%clk 0:02:17.6]} 11... Be6 {[%clk 0:01:27.5]} 12. O-O-O {[%clk
0:02:17.1]} 12... O-O {[%clk 0:01:27.4]} 13. Nd4 {[%clk 0:02:12.9]} 13... Rc8
{[%clk 0:01:18.6]} 14. Nxe6 {[%clk 0:02:05.3]} 14... fxe6 {[%clk 0:01:18.7]} 15.
Bg3 {[%clk 0:01:59.9]} 15... Bf6 {[%clk 0:01:14.1]} 16. a3 {[%clk 0:01:40.9]}
16... Nc4 {[%clk 0:01:07.8]} 17. Qe2 {[%clk 0:01:12.1]} 17... Re8 {[%clk
0:00:58.5]} 18. Qf3 {[%clk 0:01:02.7]} 18... Nd4 {[%clk 0:00:41.2]} 19. Qg4
{[%clk 0:00:36.8]} 19... Qb6 {[%clk 0:00:34.1]} 20. Bxc4 {[%clk 0:00:31.4]}
20... Rxc4 {[%clk 0:00:35]} 21. Qh5 {[%clk 0:00:13.2]} 21... g6 {[%clk
0:00:28.9]} 22. Qh6 {[%clk 0:00:11.3]} 22... Ne2+ {[%clk 0:00:24.6]} 23. Nxe2
{[%clk 0:00:08.1]} 23... Qxb2+ {[%clk 0:00:24.4]} 24. Kd2 {[%clk 0:00:08.5]}
24... Rxc2+ {[%clk 0:00:23.8]} 25. Ke1 {[%clk 0:00:09.1]} 25... Rxe2+ {[%clk
0:00:22.5]} 26. Kf1 {[%clk 0:00:09.8]} 26... Qb5 {[%clk 0:00:09.1]} 27. Kg1
{[%clk 0:00:09.3]} 27... Rb2 {[%clk 0:00:08.3]} 28. h4 {[%clk 0:00:08.9]} 28...
Rb1 {[%clk 0:00:05.9]} 29. Kh2 {[%clk 0:00:09.5]} 29... Rxd1 {[%clk 0:00:05.7]}
30. Rxd1 {[%clk 0:00:10.4]} 30... Qe2 {[%clk 0:00:03.9]} 31. Rd2 {[%clk
0:00:09.7]} 31... Qg4 {[%clk 0:00:03.5]} 32. Rc2 {[%clk 0:00:09.8]} 32... d4
{[%clk 0:00:02.8]} 33. Rc7 {[%clk 0:00:09.1]} 33... Re7 {[%clk 0:00:02.4]} 34.
Rc8+ {[%clk 0:00:08]} 34... Kf7 {[%clk 0:00:02.8]} 35. Qf8# {[%clk 0:00:07.8]}
1-0

[Event "Early-Titled-Tuesday-Blitz-October-17-2023"]
[Site "Chess.com"]
[Date "2023.10.17"]
[Round "3"]
[White "WiktoriaPOL"]
[Black "Emeraldddd"]
[Result "0-1"]
[WhiteElo "2287"]
[BlackElo "2541"]
[TimeControl "180+1"]
[EndTime "8:29:27 PDT"]
[Termination "Emeraldddd won by checkmate"]

1. c4 {[%clk 0:03:00.9]} 1... Nf6 {[%clk 0:02:50.2]} 2. Nc3 {[%clk 0:03:00.5]}
2... g6 {[%clk 0:02:50.1]} 3. g3 {[%clk 0:03:00.3]} 3... Bg7 {[%clk 0:02:50.4]}
4. Bg2 {[%clk 0:03:01]} 4... O-O {[%clk 0:02:51.3]} 5. e4 {[%clk 0:03:01.3]}
5... d6 {[%clk 0:02:49.1]} 6. Nge2 {[%clk 0:03:02]} 6... c5 {[%clk 0:02:49.2]}
7. O-O {[%clk 0:03:01.8]} 7... Nc6 {[%clk 0:02:49.9]} 8. d3 {[%clk 0:03:01.6]}
8... Ne8 {[%clk 0:02:50.2]} 9. Be3 {[%clk 0:03:00.9]} 9... Nc7 {[%clk
0:02:49.1]} 10. d4 {[%clk 0:03:01.3]} 10... cxd4 {[%clk 0:02:41.7]} 11. Nxd4
{[%clk 0:03:02.2]} 11... Ne6 {[%clk 0:02:29]} 12. Nde2 {[%clk 0:02:44.6]} 12...
Ne5 {[%clk 0:02:17.4]} 13. b3 {[%clk 0:02:41.9]} 13... Nc5 {[%clk 0:02:08.8]}
14. Qd2 {[%clk 0:02:30.8]} 14... Bh3 {[%clk 0:01:40.9]} 15. Rad1 {[%clk
0:01:57.6]} 15... Qc8 {[%clk 0:01:16.9]} 16. Nd5 {[%clk 0:01:37]} 16... Re8
{[%clk 0:01:15.3]} 17. Nec3 {[%clk 0:01:25.4]} 17... e6 {[%clk 0:00:49.4]} 18.
Nf4 {[%clk 0:01:11]} 18... Bxg2 {[%clk 0:00:44.7]} 19. Kxg2 {[%clk 0:01:10.3]}
19... Ng4 {[%clk 0:00:45.4]} 20. Bd4 {[%clk 0:00:21.3]} 20... Bxd4 {[%clk
0:00:44.3]} 21. Qxd4 {[%clk 0:00:19.4]} 21... e5 {[%clk 0:00:44.9]} 22. Qxd6
{[%clk 0:00:16.6]} 22... exf4 {[%clk 0:00:45.2]} 23. h3 {[%clk 0:00:14.1]} 23...
Ne5 {[%clk 0:00:44]} 24. Nd5 {[%clk 0:00:10.1]} 24... f3+ {[%clk 0:00:32.5]} 25.
Kh2 {[%clk 0:00:10]} 25... Qe6 {[%clk 0:00:32.2]} 26. Qxc5 {[%clk 0:00:08.2]}
26... Rac8 {[%clk 0:00:09.6]} 27. Qxa7 {[%clk 0:00:08]} 27... b5 {[%clk
0:00:08.9]} 28. Nc7 {[%clk 0:00:05.7]} 28... Qe7 {[%clk 0:00:08.8]} 29. Nxb5
{[%clk 0:00:05.7]} 29... Qg5 {[%clk 0:00:08.5]} 30. Qd4 {[%clk 0:00:04.7]} 30...
Qh6 {[%clk 0:00:07.6]} 31. h4 {[%clk 0:00:04.2]} 31... g5 {[%clk 0:00:05.7]} 32.
Qe3 {[%clk 0:00:03.9]} 32... f6 {[%clk 0:00:05.3]} 33. Qd2 {[%clk 0:00:03.8]}
33... Qh5 {[%clk 0:00:05.1]} 34. Qd5+ {[%clk 0:00:03.4]} 34... Kh8 {[%clk
0:00:05.1]} 35. Qd2 {[%clk 0:00:03.3]} 35... gxh4 {[%clk 0:00:05.5]} 36. Qf4
{[%clk 0:00:02.4]} 36... hxg3+ {[%clk 0:00:05.6]} 37. Kxg3 {[%clk 0:00:02.6]}
37... Rg8+ {[%clk 0:00:06.3]} 38. Qg4 {[%clk 0:00:02]} 38... Rxg4# {[%clk
0:00:06.5]} 0-1

[Event "Early-Titled-Tuesday-Blitz-October-17-2023"]
[Site "Chess.com"]
[Date "2023.10.17"]
[Round "3"]
[White "Boxerandchessplayer"]
[Black "Casper"]
[Result "1-0"]
[WhiteElo "2214"]
[BlackElo "2396"]
[TimeControl "180+1"]
[EndTime "8:29:27 PDT"]
[Termination "Boxerandchessplayer won on time"]

1. d4 {[%clk 0:03:00.9]} 1... Nf6 {[%clk 0:02:57.8]} 2. Nf3 {[%clk 0:02:59.6]}
2... g6 {[%clk 0:02:58.7]} 3. Nbd2 {[%clk 0:02:58.7]} 3... Bg7 {[%clk 0:02:59]}
4. e4 {[%clk 0:02:56.9]} 4... O-O {[%clk 0:02:59.9]} 5. Bb5 {[%clk 0:02:55.4]}
5... a6 {[%clk 0:02:54.7]} 6. Bd3 {[%clk 0:02:54.8]} 6... b5 {[%clk 0:02:55.6]}
7. O-O {[%clk 0:02:54.2]} 7... Bb7 {[%clk 0:02:55.3]} 8. a4 {[%clk 0:02:53.8]}
8... b4 {[%clk 0:02:53.7]} 9. c3 {[%clk 0:02:54.5]} 9... bxc3 {[%clk 0:02:52.6]}
10. bxc3 {[%clk 0:02:55.4]} 10... d6 {[%clk 0:02:52.4]} 11. Qe2 {[%clk
0:02:52.5]} 11... Nbd7 {[%clk 0:02:52.5]} 12. Ba3 {[%clk 0:02:51.8]} 12... c5
{[%clk 0:02:50.6]} 13. Rab1 {[%clk 0:02:51.3]} 13... Bc6 {[%clk 0:02:47.6]} 14.
Bc2 {[%clk 0:02:49.3]} 14... Qa5 {[%clk 0:02:42.6]} 15. d5 {[%clk 0:02:44.6]}
15... Bxa4 {[%clk 0:02:31.3]} 16. Bxa4 {[%clk 0:02:39.6]} 16... Qxa4 {[%clk
0:02:30.8]} 17. Ra1 {[%clk 0:02:40.5]} 17... Qa5 {[%clk 0:02:14.9]} 18. c4
{[%clk 0:02:27.4]} 18... Rfb8 {[%clk 0:02:02.4]} 19. Bb2 {[%clk 0:02:26.6]}
19... Qc7 {[%clk 0:01:51.5]} 20. Bc3 {[%clk 0:02:26.6]} 20... a5 {[%clk
0:01:36]} 21. e5 {[%clk 0:02:27]} 21... dxe5 {[%clk 0:01:33.2]} 22. Nxe5 {[%clk
0:02:27.2]} 22... Ng4 {[%clk 0:01:25.1]} 23. Qxg4 {[%clk 0:02:17.4]} 23... Nxe5
{[%clk 0:01:24.6]} 24. Qg3 {[%clk 0:02:14.6]} 24... a4 {[%clk 0:01:06.8]} 25.
Rfe1 {[%clk 0:02:13.1]} 25... f6 {[%clk 0:00:51.2]} 26. Bxe5 {[%clk 0:02:11.2]}
26... fxe5 {[%clk 0:00:51.5]} 27. Ra3 {[%clk 0:02:11.9]} 27... Qa5 {[%clk
0:00:43.4]} 28. Qd3 {[%clk 0:02:05.5]} 28... Rb2 {[%clk 0:00:35.3]} 29. Nf3
{[%clk 0:01:58.7]} 29... Rab8 {[%clk 0:00:23.8]} 30. Rea1 {[%clk 0:01:54.5]}
30... e4 {[%clk 0:00:06.6]} 31. Qxe4 {[%clk 0:01:53.4]} 31... R2b3 {[%clk
0:00:04.1]} 32. Qe6+ {[%clk 0:01:28.9]} 32... Kh8 {[%clk 0:00:04]} 33. Rxb3
{[%clk 0:01:28]} 33... axb3 {[%clk 0:00:01.3]} 34. Rxa5 {[%clk 0:01:07]} 34...
b2 {[%clk 0:00:02.2]} 35. g3 {[%clk 0:01:07.4]} 35... b1=Q+ {[%clk 0:00:02.4]}
36. Kg2 {[%clk 0:01:07.9]} 36... Qb4 {[%clk 0:00:02]} 37. Ra7 {[%clk 0:01:03.5]}
37... Bf6 {[%clk 0:00:02.5]} 38. Ne5 {[%clk 0:00:48.5]} 38... Qb6 {[%clk
0:00:02.1]} 39. Qxb6 {[%clk 0:00:41.4]} 39... Rxb6 {[%clk 0:00:03]} 40. Nd7
{[%clk 0:00:41.9]} 40... Rb4 {[%clk 0:00:02.9]} 41. Nxf6 {[%clk 0:00:40.9]}
41... exf6 {[%clk 0:00:03.8]} 42. d6 {[%clk 0:00:41.2]} 42... Rb8 {[%clk
0:00:02.1]} 43. Re7 {[%clk 0:00:28.3]} 1-0

[Event "Early-Titled-Tuesday-Blitz-October-17-2023"]
[Site "Chess.com"]
[Date "2023.10.17"]
[Round "3"]
[White "knightinshiningarmour16"]
[Black "blitzo_vich"]
[Result "0-1"]
[WhiteElo "2142"]
[BlackElo "2611"]
[TimeControl "180+1"]
[EndTime "8:29:28 PDT"]
[Termination "blitzo_vich won on time"]

1. d4 {[%clk 0:02:59.8]} 1... Nf6 {[%clk 0:02:56.1]} 2. Nf3 {[%clk 0:02:58.4]}
2... c5 {[%clk 0:02:55.4]} 3. d5 {[%clk 0:02:54.8]} 3... b5 {[%clk 0:02:54.9]}
4. a4 {[%clk 0:02:41.7]} 4... b4 {[%clk 0:02:53.9]} 5. c4 {[%clk 0:02:41.4]}
5... d6 {[%clk 0:02:53.4]} 6. Bg5 {[%clk 0:02:38.5]} 6... Nbd7 {[%clk
0:02:52.3]} 7. Nbd2 {[%clk 0:02:36.1]} 7... h6 {[%clk 0:02:50.7]} 8. Bh4 {[%clk
0:02:35.6]} 8... g6 {[%clk 0:02:48.6]} 9. e4 {[%clk 0:02:35.2]} 9... Bg7 {[%clk
0:02:48.3]} 10. Qc2 {[%clk 0:02:34.8]} 10... g5 {[%clk 0:02:41.5]} 11. Bg3
{[%clk 0:02:34.2]} 11... Nh5 {[%clk 0:02:41.2]} 12. Rb1 {[%clk 0:02:31.1]} 12...
Nf8 {[%clk 0:02:36.8]} 13. Bd3 {[%clk 0:02:29.2]} 13... Ng6 {[%clk 0:02:36.5]}
14. Qd1 {[%clk 0:02:01.2]} 14... Bg4 {[%clk 0:02:22.6]} 15. h3 {[%clk
0:01:51.4]} 15... Nxg3 {[%clk 0:02:21.1]} 16. fxg3 {[%clk 0:01:50.8]} 16... Bd7
{[%clk 0:02:20.9]} 17. O-O {[%clk 0:01:44.6]} 17... g4 {[%clk 0:02:15.6]} 18.
hxg4 {[%clk 0:01:42.2]} 18... Bxg4 {[%clk 0:02:15.1]} 19. Qc2 {[%clk 0:01:37.2]}
19... Rg8 {[%clk 0:02:08.6]} 20. Rbe1 {[%clk 0:01:35.1]} 20... Ne5 {[%clk
0:02:06.9]} 21. Nxe5 {[%clk 0:01:33]} 21... Bxe5 {[%clk 0:02:07.8]} 22. Kh2
{[%clk 0:01:23.8]} 22... Bxg3+ {[%clk 0:02:05.1]} 23. Kg1 {[%clk 0:01:10.8]}
23... Bxe1 {[%clk 0:02:03.7]} 24. Rxe1 {[%clk 0:01:11.7]} 24... f6 {[%clk
0:02:00.5]} 25. Nf1 {[%clk 0:01:01.5]} 25... Qc7 {[%clk 0:01:56]} 26. Ne3 {[%clk
0:01:01]} 26... Bd7 {[%clk 0:01:47]} 27. b3 {[%clk 0:00:57.2]} 27... O-O-O
{[%clk 0:01:46.1]} 28. Qd2 {[%clk 0:00:50.5]} 28... Rg5 {[%clk 0:01:45]} 29. Nf5
{[%clk 0:00:36.1]} 29... Be8 {[%clk 0:01:31.7]} 30. Nh4 {[%clk 0:00:26.4]} 30...
Bh5 {[%clk 0:01:30]} 31. Be2 {[%clk 0:00:26.1]} 31... Rdg8 {[%clk 0:01:22]} 32.
Bxh5 {[%clk 0:00:24.3]} 32... Rxh5 {[%clk 0:01:21.8]} 33. Nf5 {[%clk 0:00:23.8]}
33... Rhg5 {[%clk 0:01:20]} 34. Re2 {[%clk 0:00:23.1]} 34... h5 {[%clk
0:01:19.7]} 35. Kh2 {[%clk 0:00:20.7]} 35... Qd7 {[%clk 0:01:19]} 36. Rf2 {[%clk
0:00:16.9]} 36... Kd8 {[%clk 0:01:18.3]} 37. Qe2 {[%clk 0:00:15.2]} 37... Qe8
{[%clk 0:01:16.3]} 38. Qf3 {[%clk 0:00:13.7]} 38... Qg6 {[%clk 0:01:13.8]} 39.
g3 {[%clk 0:00:12.8]} 39... Rg4 {[%clk 0:00:58.6]} 40. Re2 {[%clk 0:00:07.2]}
40... h4 {[%clk 0:00:54.2]} 41. Nxh4 {[%clk 0:00:06.4]} 41... Rxg3 {[%clk
0:00:50.4]} 42. Nxg6 {[%clk 0:00:03.9]} 42... Rxf3 {[%clk 0:00:50.1]} 43. Nh4
{[%clk 0:00:02.7]} 43... Rxb3 {[%clk 0:00:48.8]} 0-1

[Event "Early-Titled-Tuesday-Blitz-October-17-2023"]
[Site "Chess.com"]
[Date "2023.10.17"]
[Round "3"]
[White "borocotoajua"]
[Black "crazy_m_attack"]
[Result "1-0"]
[WhiteElo "2614"]
[BlackElo "2441"]
[TimeControl "180+1"]
[EndTime "8:29:28 PDT"]
[Termination "borocotoajua won by resignation"]

1. d4 {[%clk 0:02:55.1]} 1... Nf6 {[%clk 0:02:59.3]} 2. Nf3 {[%clk 0:02:54.7]}
2... d5 {[%clk 0:02:57.4]} 3. c4 {[%clk 0:02:54.9]} 3... e6 {[%clk 0:02:57.2]}
4. g3 {[%clk 0:02:54.5]} 4... Be7 {[%clk 0:02:57.3]} 5. Bg2 {[%clk 0:02:54.7]}
5... O-O {[%clk 0:02:57.9]} 6. O-O {[%clk 0:02:55.4]} 6... dxc4 {[%clk
0:02:58.2]} 7. Qc2 {[%clk 0:02:55.5]} 7... a6 {[%clk 0:02:57.5]} 8. a4 {[%clk
0:02:55.3]} 8... Bd7 {[%clk 0:02:57.4]} 9. Qxc4 {[%clk 0:02:55.3]} 9... Bc6
{[%clk 0:02:57.7]} 10. Bg5 {[%clk 0:02:55.4]} 10... Bd5 {[%clk 0:02:57]} 11. Qd3
{[%clk 0:02:55.3]} 11... Be4 {[%clk 0:02:55.8]} 12. Qe3 {[%clk 0:02:53.8]} 12...
Bxf3 {[%clk 0:02:36.5]} 13. Bxf3 {[%clk 0:02:41.6]} 13... Nd5 {[%clk 0:02:28.4]}
14. Bxe7 {[%clk 0:02:34.7]} 14... Nxe3 {[%clk 0:02:25.4]} 15. Bxd8 {[%clk
0:02:34.6]} 15... Nxf1 {[%clk 0:02:25.3]} 16. Bxc7 {[%clk 0:02:12.8]} 16... Rc8
{[%clk 0:02:24.1]} 17. Bf4 {[%clk 0:02:01.1]} 17... Nc6 {[%clk 0:02:20]} 18.
Bxc6 {[%clk 0:01:56.1]} 18... Rxc6 {[%clk 0:02:19.4]} 19. Kxf1 {[%clk
0:01:56.7]} 19... Rc2 {[%clk 0:02:16.1]} 20. Na3 {[%clk 0:01:37.5]} 20... Rxb2
{[%clk 0:02:12.4]} 21. a5 {[%clk 0:01:25.3]} 21... Rc8 {[%clk 0:02:09.5]} 22.
Bd6 {[%clk 0:01:15.4]} 22... Rc3 {[%clk 0:01:56.9]} 23. d5 {[%clk 0:01:03.9]}
23... Rbb3 {[%clk 0:01:37.7]} 24. dxe6 {[%clk 0:00:52.4]} 24... fxe6 {[%clk
0:01:38.6]} 25. Kg2 {[%clk 0:00:42.8]} 25... Rc6 {[%clk 0:01:36.7]} 26. Bf4
{[%clk 0:00:38.9]} 26... Rc5 {[%clk 0:01:31.5]} 27. Nb1 {[%clk 0:00:37]} 27...
e5 {[%clk 0:01:18.5]} 28. Be3 {[%clk 0:00:36]} 28... Rc2 {[%clk 0:01:14.2]} 29.
Na3 {[%clk 0:00:27.3]} 29... Rxe2 {[%clk 0:01:08.3]} 30. Nc4 {[%clk 0:00:26.8]}
30... Rc3 {[%clk 0:01:08.4]} 31. Kf1 {[%clk 0:00:25.8]} 31... Rec2 {[%clk
0:01:00.4]} 32. Nxe5 {[%clk 0:00:26.2]} 32... Rb3 {[%clk 0:00:53.2]} 33. Rd1
{[%clk 0:00:25.6]} 33... h6 {[%clk 0:00:42.6]} 34. Rd8+ {[%clk 0:00:24]} 34...
Kh7 {[%clk 0:00:42.5]} 35. Rd7 {[%clk 0:00:22.7]} 35... Rb5 {[%clk 0:00:36.2]}
36. Bd4 {[%clk 0:00:21.6]} 36... Rd2 {[%clk 0:00:30.8]} 37. Nc4 {[%clk
0:00:19.3]} 37... Rc2 {[%clk 0:00:19.3]} 38. Rxg7+ {[%clk 0:00:18.1]} 38... Kh8
{[%clk 0:00:18.8]} 39. Nd6 {[%clk 0:00:12.4]} 39... Rb1+ {[%clk 0:00:12.9]} 40.
Kg2 {[%clk 0:00:12.4]} 1-0

[Event "Early-Titled-Tuesday-Blitz-October-17-2023"]
[Site "Chess.com"]
[Date "2023.10.17"]
[Round "3"]
[White "Macron20hTF1"]
[Black "AradNazari"]
[Result "0-1"]
[WhiteElo "2592"]
[BlackElo "2858"]
[TimeControl "180+1"]
[EndTime "8:29:29 PDT"]
[Termination "AradNazari won by resignation"]

1. Nf3 {[%clk 0:03:00.9]} 1... c5 {[%clk 0:02:55.6]} 2. e3 {[%clk 0:02:59.2]}
2... g6 {[%clk 0:02:53.1]} 3. d4 {[%clk 0:02:58.7]} 3... cxd4 {[%clk 0:02:53.1]}
4. exd4 {[%clk 0:02:58.8]} 4... Bg7 {[%clk 0:02:53.7]} 5. c3 {[%clk 0:02:49.6]}
5... Nf6 {[%clk 0:02:53.7]} 6. Bd3 {[%clk 0:02:41.9]} 6... O-O {[%clk
0:02:54.1]} 7. O-O {[%clk 0:02:41.8]} 7... d5 {[%clk 0:02:54.7]} 8. h3 {[%clk
0:02:42.4]} 8... Nc6 {[%clk 0:02:55.1]} 9. Re1 {[%clk 0:02:43]} 9... a6 {[%clk
0:02:55.5]} 10. Bf4 {[%clk 0:02:40]} 10... Bf5 {[%clk 0:02:52.8]} 11. Bxf5
{[%clk 0:02:35.4]} 11... gxf5 {[%clk 0:02:53.7]} 12. Ne5 {[%clk 0:02:34.8]}
12... Ne4 {[%clk 0:02:48.4]} 13. Nd2 {[%clk 0:02:26.2]} 13... f6 {[%clk
0:02:41.6]} 14. Nxc6 {[%clk 0:01:32]} 14... bxc6 {[%clk 0:02:42.5]} 15. f3
{[%clk 0:01:32.2]} 15... Nxd2 {[%clk 0:02:38.7]} 16. Qxd2 {[%clk 0:01:33.1]}
16... Qd7 {[%clk 0:02:39]} 17. Re2 {[%clk 0:01:29.9]} 17... Rfe8 {[%clk
0:02:34.4]} 18. Rae1 {[%clk 0:01:30.4]} 18... e6 {[%clk 0:02:31.2]} 19. g4
{[%clk 0:01:27.6]} 19... fxg4 {[%clk 0:02:28.1]} 20. hxg4 {[%clk 0:01:28.5]}
20... Qf7 {[%clk 0:02:01.4]} 21. Bh6 {[%clk 0:01:25.9]} 21... Re7 {[%clk
0:01:55]} 22. Rh2 {[%clk 0:01:24.8]} 22... Bh8 {[%clk 0:01:42.3]} 23. Kg2 {[%clk
0:01:22.6]} 23... Rae8 {[%clk 0:01:38.1]} 24. Reh1 {[%clk 0:01:22.2]} 24... e5
{[%clk 0:01:38.7]} 25. dxe5 {[%clk 0:01:21.6]} 25... Rxe5 {[%clk 0:01:37.3]} 26.
Kg3 {[%clk 0:01:07.8]} 26... Qe6 {[%clk 0:00:55.4]} 27. Bf4 {[%clk 0:01:01.4]}
27... Re2 {[%clk 0:00:54.6]} 28. Qd3 {[%clk 0:00:27.4]} 28... Rxh2 {[%clk
0:00:52.5]} 29. Rxh2 {[%clk 0:00:27.2]} 29... Qe1+ {[%clk 0:00:51.8]} 30. Rf2
{[%clk 0:00:14.3]} 30... Bg7 {[%clk 0:00:22.2]} 31. Kg2 {[%clk 0:00:13.9]} 31...
Bf8 {[%clk 0:00:18.4]} 32. Qxa6 {[%clk 0:00:11.5]} 32... Bc5 {[%clk 0:00:16.8]}
33. Bg3 {[%clk 0:00:02.2]} 33... Bxf2 {[%clk 0:00:14.4]} 34. Bxf2 {[%clk
0:00:02.8]} 34... Re2 {[%clk 0:00:14.6]} 35. Qc8+ {[%clk 0:00:02.5]} 35... Kg7
{[%clk 0:00:14.8]} 36. Qd7+ {[%clk 0:00:02.5]} 36... Kh6 {[%clk 0:00:11.3]} 37.
g5+ {[%clk 0:00:02.6]} 37... Kg6 {[%clk 0:00:08.6]} 38. Qe8+ {[%clk 0:00:01.8]}
38... Rxe8 {[%clk 0:00:08.1]} 0-1

[Event "Early-Titled-Tuesday-Blitz-October-17-2023"]
[Site "Chess.com"]
[Date "2023.10.17"]
[Round "3"]
[White "Fan_Of_Chucky"]
[Black "tarno17"]
[Result "1-0"]
[WhiteElo "2475"]
[BlackElo "2136"]
[TimeControl "180+1"]
[EndTime "8:29:30 PDT"]
[Termination "Fan_Of_Chucky won on time"]

1. d4 {[%clk 0:03:00.9]} 1... d5 {[%clk 0:03:00.2]} 2. c4 {[%clk 0:02:53.9]}
2... e6 {[%clk 0:03:00.4]} 3. Nf3 {[%clk 0:02:53]} 3... Nf6 {[%clk 0:02:56]} 4.
g3 {[%clk 0:02:52.5]} 4... Be7 {[%clk 0:02:55]} 5. Bg2 {[%clk 0:02:45.9]} 5...
O-O {[%clk 0:02:55.3]} 6. O-O {[%clk 0:02:46.4]} 6... b6 {[%clk 0:02:53.2]} 7.
Nc3 {[%clk 0:02:41.5]} 7... Bb7 {[%clk 0:02:53.4]} 8. Ne5 {[%clk 0:02:41.8]}
8... Nbd7 {[%clk 0:02:35.8]} 9. Bg5 {[%clk 0:02:38.9]} 9... c6 {[%clk
0:02:23.1]} 10. e4 {[%clk 0:02:25.4]} 10... Nxe4 {[%clk 0:01:45]} 11. Nxe4
{[%clk 0:02:13.6]} 11... Nxe5 {[%clk 0:01:23.4]} 12. Bxe7 {[%clk 0:02:11.1]}
12... Qxe7 {[%clk 0:01:23.2]} 13. dxe5 {[%clk 0:02:11.7]} 13... dxe4 {[%clk
0:01:21.1]} 14. Bxe4 {[%clk 0:02:12.6]} 14... Rfd8 {[%clk 0:01:12.9]} 15. Qf3
{[%clk 0:02:11.4]} 15... Qc7 {[%clk 0:01:06.7]} 16. Qh5 {[%clk 0:01:34]} 16...
g6 {[%clk 0:01:04.6]} 17. Qg5 {[%clk 0:01:33]} 17... Rd4 {[%clk 0:01:01.6]} 18.
Rfe1 {[%clk 0:01:14.5]} 18... Rad8 {[%clk 0:00:52.3]} 19. h4 {[%clk 0:01:12.1]}
19... R8d7 {[%clk 0:00:06.8]} 20. b3 {[%clk 0:00:37.9]} 20... Qd8 {[%clk
0:00:06.8]} 21. Qe3 {[%clk 0:00:38.6]} 21... c5 {[%clk 0:00:05.8]} 22. Bxb7
{[%clk 0:00:36.1]} 22... Rxb7 {[%clk 0:00:06.7]} 23. h5 {[%clk 0:00:36.7]} 23...
Rbd7 {[%clk 0:00:04.4]} 24. hxg6 {[%clk 0:00:29.3]} 24... hxg6 {[%clk 0:00:04]}
25. Qf3 {[%clk 0:00:26.8]} 25... Kg7 {[%clk 0:00:04.2]} 26. Kg2 {[%clk
0:00:25.4]} 26... Qg5 {[%clk 0:00:03.2]} 27. Re3 {[%clk 0:00:19]} 27... Rd2
{[%clk 0:00:03.2]} 28. Qc6 {[%clk 0:00:08.6]} 28... Qxe3 {[%clk 0:00:01.6]} 29.
Rf1 {[%clk 0:00:03.9]} 29... Qe2 {[%clk 0:00:02.1]} 30. Qc8 {[%clk 0:00:04.8]}
30... Qf3+ {[%clk 0:00:02.7]} 31. Kxf3 {[%clk 0:00:04.8]} 31... R7d3+ {[%clk
0:00:02.9]} 32. Kg2 {[%clk 0:00:04.9]} 32... Re2 {[%clk 0:00:02]} 33. Qe8 {[%clk
0:00:04.4]} 33... Rdd2 {[%clk 0:00:02.3]} 34. Qe7 {[%clk 0:00:05.1]} 34... Kg8
{[%clk 0:00:02]} 35. Qf6 {[%clk 0:00:05.4]} 35... Rxa2 {[%clk 0:00:02.3]} 36.
Rh1 {[%clk 0:00:05.6]} 36... Rxf2+ {[%clk 0:00:02.3]} 37. Qxf2 {[%clk
0:00:06.5]} 37... Rxf2+ {[%clk 0:00:01.8]} 38. Kxf2 {[%clk 0:00:07.4]} 1-0

[Event "Early-Titled-Tuesday-Blitz-October-17-2023"]
[Site "Chess.com"]
[Date "2023.10.17"]
[Round "3"]
[White "tusplingher"]
[Black "carokannlover213"]
[Result "1-0"]
[WhiteElo "2512"]
[BlackElo "2719"]
[TimeControl "180+1"]
[EndTime "8:29:33 PDT"]
[Termination "tusplingher won on time"]

1. e4 {[%clk 0:03:00.9]} 1... c5 {[%clk 0:02:59.6]} 2. b3 {[%clk 0:02:58.8]}
2... Nc6 {[%clk 0:02:57.1]} 3. Bb2 {[%clk 0:02:58.2]} 3... e6 {[%clk 0:02:54.9]}
4. Bb5 {[%clk 0:02:52.3]} 4... Nd4 {[%clk 0:02:54.2]} 5. Bd3 {[%clk 0:02:50.9]}
5... e5 {[%clk 0:02:51.7]} 6. Nf3 {[%clk 0:02:35.8]} 6... d6 {[%clk 0:02:49.2]}
7. c3 {[%clk 0:02:35.1]} 7... Ne6 {[%clk 0:02:47.8]} 8. Bb5+ {[%clk 0:02:31]}
8... Bd7 {[%clk 0:02:45.8]} 9. Bxd7+ {[%clk 0:02:30.7]} 9... Qxd7 {[%clk
0:02:46.7]} 10. d4 {[%clk 0:02:29.8]} 10... cxd4 {[%clk 0:02:10.1]} 11. cxd4
{[%clk 0:02:29.1]} 11... Nf6 {[%clk 0:02:09.2]} 12. O-O {[%clk 0:02:21.2]} 12...
Nxe4 {[%clk 0:02:07]} 13. Re1 {[%clk 0:02:18.2]} 13... f5 {[%clk 0:01:36.9]} 14.
dxe5 {[%clk 0:02:11.3]} 14... d5 {[%clk 0:01:36.6]} 15. Nd4 {[%clk 0:02:00.7]}
15... Bc5 {[%clk 0:01:33.8]} 16. f3 {[%clk 0:01:46.9]} 16... O-O {[%clk
0:01:19]} 17. b4 {[%clk 0:01:07]} 17... Bb6 {[%clk 0:01:16]} 18. Na3 {[%clk
0:01:07.1]} 18... Rac8 {[%clk 0:00:58]} 19. Re2 {[%clk 0:00:38.4]} 19... N4g5
{[%clk 0:00:27.8]} 20. Kh1 {[%clk 0:00:33.2]} 20... Nf4 {[%clk 0:00:27.8]} 21.
Rd2 {[%clk 0:00:30.1]} 21... Rfe8 {[%clk 0:00:22.3]} 22. Qe1 {[%clk 0:00:25.6]}
22... Nge6 {[%clk 0:00:17.1]} 23. Nxf5 {[%clk 0:00:22.8]} 23... Qa4 {[%clk
0:00:15.2]} 24. Nd6 {[%clk 0:00:20.9]} 24... Rc2 {[%clk 0:00:09.7]} 25. Nxc2
{[%clk 0:00:18.5]} 25... Rf8 {[%clk 0:00:07.8]} 26. Nd4 {[%clk 0:00:14.8]} 26...
Ng5 {[%clk 0:00:07.1]} 27. e6 {[%clk 0:00:12.9]} 27... Bc7 {[%clk 0:00:05.4]}
28. e7 {[%clk 0:00:12.9]} 28... Bxd6 {[%clk 0:00:06]} 29. exf8=Q+ {[%clk
0:00:13.1]} 29... Kxf8 {[%clk 0:00:06.5]} 30. Rc1 {[%clk 0:00:11.2]} 30... Qd7
{[%clk 0:00:03.4]} 31. g3 {[%clk 0:00:10]} 31... Ng6 {[%clk 0:00:03.8]} 32. f4
{[%clk 0:00:10.1]} 32... Ne4 {[%clk 0:00:04.3]} 33. Re2 {[%clk 0:00:10]} 33...
a5 {[%clk 0:00:03.2]} 34. Rxe4 {[%clk 0:00:10.4]} 34... dxe4 {[%clk 0:00:03.4]}
35. Qxe4 {[%clk 0:00:11.3]} 35... Bxb4 {[%clk 0:00:03.3]} 36. Qf5+ {[%clk
0:00:11]} 36... Qxf5 {[%clk 0:00:02.9]} 37. Nxf5 {[%clk 0:00:11.9]} 37... Kf7
{[%clk 0:00:03.5]} 38. Nxg7 {[%clk 0:00:12.3]} 38... Ne7 {[%clk 0:00:01.8]} 39.
Rc7 {[%clk 0:00:11.8]} 39... Kf8 {[%clk 0:00:01.2]} 40. Ne6+ {[%clk 0:00:11.8]}
40... Ke8 {[%clk 0:00:02.1]} 41. Nd4 {[%clk 0:00:11.6]} 1-0